bitfinex-derivatives/quotes_BTCF0:USTF0_20250426
["timestamp","ask_amount","ask_price","bid_price","bid_amount"]
[1745673888493,0.47948909,94252.0,94251.0,0.2121314]
[1745673888894,0.47648909,94252.0,94251.0,0.2121314]
[1745673889201,0.47948909,94252.0,94251.0,0.2121314]
[1745673890994,0.47648909,94252.0,94251.0,0.2121314]
[1745673891197,0.47948909,94252.0,94251.0,0.2121314]
[1745673891598,0.47648909,94252.0,94251.0,0.2121314]
[1745673891798,0.47948909,94252.0,94251.0,0.2121314]
[1745673892107,0.47948909,94252.0,94251.0,0.3801314]
[1745673893302,0.84028909,94252.0,94251.0,0.3801314]
[1745673895197,0.84028909,94252.0,94251.0,0.2121314]
[1745673896102,0.84028909,94252.0,94251.0,0.3801314]
[1745673899102,0.73418909,94252.0,94251.0,0.3801314]
[1745673902498,0.37338909,94252.0,94251.0,0.3801314]
[1745673902705,0.73418909,94252.0,94251.0,0.3801314]
[1745673903504,0.37338909,94252.0,94251.0,0.3801314]
[1745673903703,0.73418909,94252.0,94251.0,0.3801314]
[1745673909005,0.0530354,94247.0,94239.0,0.2121567]
[1745673909209,0.3608,94241.0,94240.0,0.2121561]
[1745673909507,0.053039,94240.0,94231.0,0.0530439]
[1745673909707,0.2121707,94234.0,94231.0,0.0530439]
[1745673910009,0.0645,94233.0,94232.0,0.2121742]
[1745673910212,0.3545,94233.0,94232.0,0.3801742]
[1745673910605,0.36096649,94233.0,94232.0,0.3801742]
[1745673911010,0.36096649,94233.0,94232.0,0.3811742]
[1745673911400,0.36096649,94233.0,94232.0,0.3801742]
[1745673913311,0.36196649,94233.0,94232.0,0.3801742]
[1745673916611,0.57413839,94233.0,94232.0,0.168]
[1745673917711,0.57413839,94233.0,94232.0,0.3801742]
[1745673918305,0.36196649,94233.0,94232.0,0.3801742]
[1745673924118,0.57413839,94233.0,94232.0,0.168]
[1745673929911,0.93493839,94233.0,94232.0,0.168]
[1745673933017,0.57413839,94233.0,94232.0,0.168]
[1745673933225,0.93493839,94233.0,94232.0,0.168]
[1745673933522,0.57413839,94233.0,94232.0,0.168]
[1745673933824,0.93493839,94233.0,94232.0,0.168]
[1745673937023,0.57413839,94233.0,94232.0,0.168]
[1745673937215,0.93493839,94233.0,94232.0,0.168]
[1745673937719,0.57413839,94233.0,94232.0,0.168]
[1745673937922,0.93493839,94233.0,94232.0,0.168]
[1745673939421,0.2652219,94231.0,94229.0,0.2121796]
[1745673939623,0.07026649,94230.0,94229.0,0.2121796]
[1745673939829,0.31026649,94230.0,94229.0,0.2121796]
[1745673940215,0.31026649,94230.0,94229.0,0.3801796]
[1745673943024,0.67106649,94230.0,94229.0,0.3801796]
[1745673944925,0.88324519,94230.0,94229.0,0.168]
[1745673945921,0.88324519,94230.0,94229.0,0.3801809]
[1745673947829,0.88324519,94230.0,94229.0,0.168]
[1745673956335,0.88404674,94230.0,94229.0,0.168]
[1745673962428,0.88404674,94230.0,94229.0,0.3801809]
[1745673962634,0.88404674,94230.0,94229.0,0.168]
[1745673964540,0.67186804,94230.0,94229.0,0.3801809]
[1745673965239,0.88404674,94230.0,94229.0,0.168]
[1745673977046,0.0530473,94226.0,94218.0,0.03]
[1745673977341,0.5730013,94220.0,94218.0,0.0616]
[1745673977547,0.0648,94219.0,94218.0,0.0316]
[1745673977736,0.3248,94219.0,94218.0,0.2438057]
[1745673978140,0.3248,94219.0,94218.0,0.4118057]
[1745673978545,0.33206804,94219.0,94218.0,0.4128057]
[1745673978944,0.33206804,94219.0,94218.0,0.4118057]
[1745673979145,0.30046804,94219.0,94218.0,0.4128057]
[1745673980742,0.33316804,94219.0,94218.0,0.4128057]
[1745673981454,0.54537144,94219.0,94218.0,0.169]
[1745673982644,0.33316804,94219.0,94218.0,0.169]
[1745673984941,0.33316804,94219.0,94218.0,0.3812057]
[1745673987944,0.69396804,94219.0,94218.0,0.3812057]
[1745673992157,0.69396804,94219.0,94199.0,0.3608]
[1745673992362,0.10251212,94214.0,94208.0,0.053057]
[1745673992558,0.0318,94213.0,94212.0,0.2122192]
[1745673992857,0.3219,94213.0,94212.0,0.2122192]
[1745673993158,0.3219,94213.0,94212.0,0.3802192]
[1745673994049,0.6827,94213.0,94212.0,0.3802192]
[1745673995055,0.6837,94213.0,94212.0,0.3802192]
[1745673997258,0.6837,94213.0,94212.0,0.4450192]
[1745674005561,0.3229,94213.0,94212.0,0.4450192]
[1745674005861,0.6837,94213.0,94212.0,0.4450192]
[1745674006451,0.3229,94213.0,94212.0,0.4450192]
[1745674006761,0.6837,94213.0,94212.0,0.4450192]
[1745674007658,0.3229,94213.0,94212.0,0.4450192]
[1745674007854,0.6837,94213.0,94212.0,0.4450192]
[1745674014859,0.3229,94213.0,94212.0,0.4450192]
[1745674015058,0.6837,94213.0,94212.0,0.4450192]
[1745674017363,0.6519,94213.0,94212.0,0.4450192]
[1745674018661,0.6519,94213.0,94212.0,0.3802192]
[1745674024969,0.2911,94213.0,94212.0,0.3802192]
[1745674025174,0.6519,94213.0,94212.0,0.3802192]
[1745674026164,0.6519,94213.0,94212.0,0.168]
[1745674026570,0.8641169,94213.0,94212.0,0.168]
[1745674027069,0.6824,94213.0,94212.0,0.168]
[1745674027265,0.6824,94213.0,94200.0,0.08703081]
[1745674027465,0.3608,94202.0,94201.0,0.212244]
[1745674027675,0.6008,94202.0,94201.0,0.212244]
[1745674028173,0.6008,94202.0,94201.0,0.380244]
[1745674029676,0.61173113,94202.0,94201.0,0.380244]
[1745674030868,0.61961266,94202.0,94201.0,0.380244]
[1745674032067,0.61961266,94202.0,94201.0,0.443744]
[1745674032467,0.25881266,94202.0,94201.0,0.443744]
[1745674036572,0.25093113,94202.0,94201.0,0.443744]
[1745674037374,0.25093113,94202.0,94201.0,0.5499]
[1745674039080,0.25093113,94202.0,94201.0,0.443744]
[1745674042273,0.10251212,94230.0,94216.0,0.0530521]
[1745674042479,0.09,94221.0,94220.0,0.2652509]
[1745674042674,0.10087625,94221.0,94220.0,0.2652509]
[1745674042974,0.10087625,94221.0,94220.0,0.2974509]
[1745674043166,0.10087625,94221.0,94220.0,0.4654509]
[1745674043573,0.10087625,94221.0,94220.0,0.4967509]
[1745674043777,0.10997109,94221.0,94220.0,0.4967509]
[1745674044272,0.11097109,94221.0,94220.0,0.4967509]
[1745674045276,3.58053447,94200.0,87900.0,0.2]
[1745674045471,3.77771757,94200.0,94199.0,0.2122485]
[1745674045874,3.77771757,94200.0,94199.0,1.0991945]
[1745674046069,3.71456097,94200.0,94199.0,1.2671945]
[1745674046274,3.66851147,94200.0,94199.0,1.2671945]
[1745674047376,3.66851147,94200.0,94199.0,1.2711945]
[1745674048775,3.66851147,94200.0,94199.0,1.3102945]
[1745674049280,3.66851147,94200.0,94199.0,0.5295045]
[1745674050980,3.66851147,94200.0,94199.0,0.5275045]
[1745674056282,3.66851147,94200.0,94199.0,0.5204045]
[1745674058588,3.66851147,94200.0,94199.0,2.0204045]
[1745674058785,3.66851147,94200.0,94199.0,1.8822485]
[1745674060985,3.67925857,94200.0,94199.0,1.8822485]
[1745674061184,3.67925857,94200.0,94199.0,1.8802485]
[1745674061384,3.67925857,94200.0,94199.0,1.8822485]
[1745674061786,3.67925857,94200.0,94199.0,1.8802485]
[1745674061982,3.67925857,94200.0,94199.0,1.8822485]
[1745674065093,3.67925857,94200.0,94199.0,0.3822485]
[1745674065688,3.74145857,94200.0,94199.0,0.3822485]
[1745674066788,3.74145857,94200.0,94199.0,0.3812485]
[1745674068495,3.95370477,94200.0,94199.0,0.3812485]
[1745674068697,3.74145857,94200.0,94199.0,0.3812485]
[1745674069096,3.74145857,94200.0,94199.0,0.2132485]
[1745674070705,4.10225857,94200.0,94199.0,0.2132485]
[1745674071201,4.10225857,94200.0,94199.0,0.3812485]
[1745674074102,4.10225857,94200.0,94199.0,0.2132485]
[1745674075307,3.74145857,94200.0,94199.0,0.2132485]
[1745674075507,4.10225857,94200.0,94199.0,0.2132485]
[1745674077215,4.10225857,94200.0,94199.0,0.3812485]
[1745674079317,4.10225857,94200.0,94199.0,0.2132485]
[1745674080211,4.10225857,94200.0,94199.0,0.3812485]
[1745674084222,4.10225857,94200.0,94199.0,0.2132485]
[1745674084922,4.31450477,94200.0,94199.0,0.2132485]
[1745674085422,4.10225857,94200.0,94199.0,0.2132485]
[1745674092324,4.10225857,94200.0,94199.0,0.3812485]
[1745674093129,3.74145857,94200.0,94199.0,0.3812485]
[1745674093426,4.10225857,94200.0,94199.0,0.3812485]
[1745674094126,4.10225857,94200.0,94199.0,0.2132485]
[1745674095223,4.10225857,94200.0,94199.0,0.3812485]
[1745674103230,4.07025857,94200.0,94199.0,0.3812485]
[1745674103427,3.70945857,94200.0,94199.0,0.3812485]
[1745674103930,3.70945857,94200.0,94199.0,0.4529485]
[1745674107427,3.69871147,94200.0,94199.0,0.4529485]
[1745674109231,3.69871147,94200.0,94199.0,0.5591045]
[1745674111529,3.69871147,94200.0,94199.0,0.4529485]
[1745674111735,3.69871147,94200.0,94199.0,0.5591045]
[1745674112237,3.69871147,94200.0,94199.0,0.4529485]
[1745674115739,3.69871147,94200.0,94199.0,0.4140485]
[1745674116030,3.69871147,94200.0,94199.0,0.3812485]
[1745674123937,3.69871147,94200.0,94199.0,0.3313485]
[1745674125138,3.72991147,94200.0,94199.0,0.3313485]
[1745674133241,4.09071147,94200.0,94199.0,0.3313485]
[1745674136745,3.72991147,94200.0,94199.0,0.3313485]
[1745674136955,4.09071147,94200.0,94199.0,0.3313485]
[1745674137449,3.72991147,94200.0,94199.0,0.3313485]
[1745674137652,4.09071147,94200.0,94199.0,0.3313485]
[1745674138842,4.24992917,94200.0,94195.0,0.0530638]
[1745674139045,4.24992917,94200.0,94197.0,0.2122485]
[1745674139046,0.212253,94198.0,94197.0,0.2122485]
[1745674139250,0.492253,94198.0,94197.0,0.2122485]
[1745674140045,0.492253,94198.0,94197.0,0.2132485]
[1745674140248,0.28,94198.0,94197.0,0.2132485]
[1745674141756,0.344,94198.0,94197.0,0.2132485]
[1745674149662,0.7048,94198.0,94197.0,0.2132485]
[1745674150562,0.344,94198.0,94197.0,0.2132485]
[1745674150766,0.7048,94198.0,94197.0,0.2132485]
[1745674152168,0.7048,94198.0,94197.0,0.3812485]
[1745674152466,0.344,94198.0,94197.0,0.3812485]
[1745674152666,0.7048,94198.0,94197.0,0.3812485]
[1745674154167,0.7048,94198.0,94197.0,0.2132485]
[1745674156068,0.7048,94198.0,94197.0,0.3812485]
[1745674157270,0.7048,94198.0,94197.0,0.2132485]
[1745674163073,0.7048,94198.0,94197.0,0.3812485]
[1745674168976,0.2122733,94190.0,94189.0,0.2122665]
[1745674169174,0.8330733,94190.0,94189.0,0.2122665]
[1745674169573,0.8330733,94190.0,94189.0,0.2430665]
[1745674169766,0.8959733,94190.0,94189.0,0.2430665]
[1745674170272,0.8959733,94190.0,94189.0,0.4120665]
[1745674171067,0.6837,94190.0,94189.0,0.4120665]
[1745674176676,0.8959688,94190.0,94189.0,0.4120665]
[1745674176878,0.8959688,94190.0,94189.0,0.3812665]
[1745674177872,0.6837,94190.0,94189.0,0.3812665]
[1745674178379,0.8959688,94190.0,94187.0,0.00530856]
[1745674178574,0.6837,94190.0,94179.0,0.0530732]
[1745674178780,0.3608,94180.0,94167.0,0.0530799]
[1745674178980,0.3608,94170.0,94169.0,0.265395]
[1745674179287,0.6008,94170.0,94169.0,0.5183739]
[1745674180476,0.6008,94170.0,94169.0,0.5213739]
[1745674181887,0.6008,94170.0,94169.0,0.5183739]
[1745674183086,0.61152282,94170.0,94169.0,0.5183739]
[1745674184288,0.61930576,94170.0,94169.0,0.5183739]
[1745674185582,0.61152282,94170.0,94169.0,0.5183739]
[1745674185783,0.24,94170.0,94169.0,0.6872659]
[1745674186588,0.24,94170.0,94169.0,0.5183739]
[1745674187683,0.3051,94170.0,94169.0,0.5183739]
[1745674188889,0.3051,94170.0,94169.0,0.433395]
[1745674189593,0.3051,94170.0,94169.0,0.466395]
[1745674194603,0.6659,94170.0,94169.0,0.466395]
[1745674198308,0.6659,94170.0,94169.0,0.433395]
[1745674199508,0.6659,94170.0,94169.0,0.3803161]
[1745674204603,0.8782138,94170.0,94169.0,0.168]
[1745674204803,0.8782138,94170.0,94169.0,0.3803161]
[1745674206712,0.6659,94170.0,94169.0,0.3803161]
[1745674215410,0.3051,94170.0,94169.0,0.3803161]
[1745674215608,1.0267,94170.0,94169.0,0.3803161]
[1745674218917,1.0267,94170.0,94162.0,0.0530829]
[1745674219110,0.2123341,94161.0,94160.0,0.21325546]
[1745674219309,0.2123313,94163.0,94162.0,0.2123319]
[1745674219512,0.4723313,94163.0,94162.0,0.2123319]
[1745674220222,0.4723313,94163.0,94162.0,0.3813319]
[1745674221317,0.26,94163.0,94162.0,0.3813319]
[1745674221519,0.4723296,94163.0,94162.0,0.3813319]
[1745674221709,0.26,94163.0,94162.0,0.3813319]
[1745674222514,0.2914,94163.0,94162.0,0.3813319]
[1745674223419,0.5037296,94163.0,94162.0,0.169]
[1745674224015,0.5037296,94163.0,94162.0,0.3813319]
[1745674225821,0.5037296,94163.0,94160.0,0.00092016]
[1745674226006,0.5037296,94163.0,94130.0,0.10357447]
[1745674226007,0.2123507,94154.0,94153.0,0.2123501]
[1745674226314,0.8131507,94154.0,94153.0,0.2123501]
[1745674226514,0.6008,94154.0,94153.0,0.2123501]
[1745674227220,0.6008,94154.0,94153.0,0.3803501]
[1745674228519,0.6028,94154.0,94153.0,0.3803501]
[1745674229021,0.6008,94154.0,94153.0,0.3803501]
[1745674229220,0.8151499,94154.0,94153.0,0.3803501]
[1745674229921,0.8473499,94154.0,94153.0,0.3803501]
[1745674231530,0.635,94154.0,94153.0,0.3803501]
[1745674232124,0.6351,94154.0,94153.0,0.3803501]
[1745674232315,0.6351,94154.0,94153.0,0.4459501]
[1745674233118,0.6351,94154.0,94153.0,0.4133501]
[1745674234212,0.6351,94154.0,94153.0,0.3803501]
[1745674244825,0.9959,94154.0,94153.0,0.3803501]
[1745674250135,0.2743,94154.0,94153.0,0.3803501]
[1745674250432,0.9959,94154.0,94153.0,0.3803501]
[1745674251635,0.2743,94154.0,94153.0,0.3803501]
[1745674251837,0.9959,94154.0,94153.0,0.3803501]
[1745674258137,0.6351,94154.0,94153.0,0.3803501]
[1745674258339,0.6028,94154.0,94153.0,0.4436501]
[1745674260137,0.6028,94154.0,94153.0,0.4109501]
[1745674260640,0.6028,94154.0,94153.0,0.3803501]
[1745674262629,0.8151499,94154.0,94153.0,0.168]
[1745674263540,0.8774499,94154.0,94153.0,0.168]
[1745674263742,0.8774499,94154.0,94153.0,0.3803522]
[1745674264245,0.6651,94154.0,94153.0,0.3803522]
[1745674264633,0.6651,94154.0,94153.0,0.168]
[1745674264833,0.6651,94154.0,94153.0,0.3803522]
[1745674267837,0.6339,94154.0,94153.0,0.3803522]
[1745674268236,0.6339,94154.0,94153.0,0.4438522]
[1745674270546,0.6339,94154.0,94153.0,0.4118522]
[1745674271247,0.6339,94154.0,94153.0,0.3803522]
[1745674283739,0.6664,94154.0,94153.0,0.3803522]
[1745674285148,0.6664,94154.0,94137.0,0.0321]
[1745674285149,0.772608,94154.0,94130.0,0.00106235]
[1745674285450,0.3608,94133.0,94132.0,0.2438996]
[1745674285653,0.6308,94133.0,94132.0,0.2438996]
[1745674286358,0.6308,94133.0,94132.0,0.4118996]
[1745674286850,0.6308,94133.0,94132.0,0.4138996]
[1745674287245,0.64140102,94133.0,94132.0,0.4138996]
[1745674287952,0.64140102,94133.0,94132.0,0.4445996]
[1745674288749,0.64140102,94133.0,94132.0,0.4774996]
[1745674290659,0.64140102,94133.0,94132.0,0.4138996]
[1745674292264,0.85379832,94133.0,94132.0,0.3823996]
[1745674293250,0.91739832,94133.0,94132.0,0.3823996]
[1745674293553,0.70500102,94133.0,94132.0,0.3823996]
[1745674306977,0.70500102,94133.0,94132.0,0.4137996]
[1745674310670,0.70500102,94133.0,94132.0,0.2014]
[1745674310870,0.70500102,94133.0,94132.0,0.4137996]
[1745674311075,0.70500102,94133.0,94132.0,0.3823996]
[1745674319279,0.91739832,94133.0,94132.0,0.17]
[1745674319585,0.91739832,94133.0,94132.0,0.3823996]
[1745674319586,0.70500102,94133.0,94132.0,0.3823996]
[1745674325988,0.70500102,94133.0,94132.0,0.3813996]
[1745674333895,0.67280102,94133.0,94132.0,0.3813996]
[1745674334292,0.67280102,94133.0,94132.0,0.3803996]
[1745674340004,0.70300102,94133.0,94132.0,0.3803996]
[1745674341001,1.06380102,94133.0,94132.0,0.3803996]
[1745674352717,1.06380102,94133.0,94132.0,0.4132996]
[1745674352908,1.00220102,94133.0,94132.0,0.4132996]
[1745674359623,1.03500102,94133.0,94132.0,0.4132996]
[1745674367516,1.00220102,94133.0,94132.0,0.4132996]
[1745674375631,0.28060102,94133.0,94132.0,0.4132996]
[1745674375832,0.64140102,94133.0,94132.0,0.4132996]
[1745674377828,0.28060102,94133.0,94132.0,0.4132996]
[1745674378035,0.64140102,94133.0,94132.0,0.4132996]
[1745674379936,0.64140102,94133.0,94132.0,0.3803996]
[1745674382232,0.64140102,94133.0,94132.0,0.168]
[1745674382233,0.85379832,94133.0,94132.0,0.168]
[1745674382639,0.85379832,94133.0,94132.0,0.3803996]
[1745674382940,0.85379832,94133.0,94132.0,0.168]
[1745674383533,0.91589832,94133.0,94132.0,0.168]
[1745674383832,0.91589832,94133.0,94132.0,0.3803996]
[1745674384030,0.70350102,94133.0,94132.0,0.3803996]
[1745674391548,0.70350102,94133.0,94132.0,0.168]
[1745674391736,0.2124018,94131.0,94130.0,0.00106235]
[1745674391937,0.4724018,94131.0,94130.0,0.21346645]
[1745674392137,0.4724018,94131.0,94130.0,0.38146645]
[1745674392748,0.4724018,94131.0,94130.0,0.16906235]
[1745674393145,0.26,94131.0,94130.0,0.38146645]
[1745674393535,0.4724018,94131.0,94130.0,0.38146645]
[1745674393740,0.4724018,94131.0,94130.0,0.38246645]
[1745674394947,0.4724018,94131.0,94130.0,0.17006235]
[1745674395848,0.4724018,94131.0,94130.0,0.38246645]
[1745674396241,0.4724018,94131.0,94130.0,0.17006235]
[1745674396839,0.4724018,94131.0,94130.0,0.38246645]
[1745674397341,1.1940018,94131.0,94130.0,0.38246645]
[1745674399743,1.1940018,94131.0,94130.0,0.17006235]
[1745674409452,1.2592018,94131.0,94130.0,0.17006235]
[1745674412763,1.0468,94131.0,94127.0,0.00531194]
[1745674413059,0.2124086,94128.0,94127.0,0.00531194]
[1745674413355,0.4924086,94128.0,94127.0,0.00531194]
[1745674414048,0.5547086,94128.0,94127.0,0.17331194]
[1745674415052,0.5547086,94128.0,94127.0,0.17431194]
[1745674417252,0.56262883,94128.0,94127.0,0.17431194]
[1745674418855,0.56262883,94128.0,94127.0,0.12172194]
[1745674419554,0.56262883,94128.0,94127.0,0.09330194]
[1745674423852,0.56262883,94128.0,94127.0,0.06324605]
[1745674431165,0.35022023,94128.0,94127.0,0.27565685]
[1745674431962,0.35022023,94128.0,94127.0,0.30605685]
[1745674434870,0.35022023,94128.0,94127.0,0.27565685]
[1745674436458,0.56262883,94128.0,94127.0,0.06324605]
[1745674441759,1.28422883,94128.0,94127.0,0.06324605]
[1745674452368,1.07182023,94128.0,94127.0,0.06324605]
[1745674453078,1.28422883,94128.0,94127.0,0.06324605]
[1745674453472,1.07182023,94128.0,94127.0,0.06324605]
[1745674453868,1.07182023,94128.0,94127.0,0.09394605]
[1745674456379,1.28422883,94128.0,94127.0,0.09394605]
[1745674456578,1.07182023,94128.0,94127.0,0.09394605]
[1745674457180,1.07182023,94128.0,94127.0,0.30635685]
[1745674458180,1.07182023,94128.0,94127.0,0.09394605]
[1745674459181,1.07182023,94128.0,94127.0,0.30635685]
[1745674459682,1.07182023,94128.0,94127.0,0.09394605]
[1745674460189,1.28422883,94128.0,94127.0,0.09394605]
[1745674460384,1.07182023,94128.0,94127.0,0.06324605]
[1745674461186,1.28422883,94128.0,94127.0,0.06324605]
[1745674462389,1.28422883,94128.0,94127.0,0.01116417]
[1745674463585,0.2124244,94121.0,94120.0,0.031]
[1745674463784,0.27,94121.0,94120.0,0.031]
[1745674464181,0.27,94121.0,94090.0,0.4102]
[1745674464377,0.7216,94112.0,94111.0,0.2124463]
[1745674464581,0.9716,94112.0,94111.0,0.2124463]
[1745674464786,0.9716,94112.0,94110.0,0.2124471]
[1745674465086,0.0953,94111.0,94110.0,0.2124492]
[1745674465284,0.3853,94111.0,94110.0,0.2124492]
[1745674465489,0.3853,94111.0,94110.0,0.2444492]
[1745674466292,0.3853,94111.0,94110.0,0.4124492]
[1745674467291,0.3853,94111.0,94110.0,0.4164492]
[1745674472400,0.3853,94111.0,94110.0,0.3844492]
[1745674472804,0.3853,94111.0,94110.0,0.4154492]
[1745674474903,0.3853,94111.0,94110.0,0.3844492]
[1745674479302,0.3853,94111.0,94110.0,0.4147492]
[1745674481105,0.3853,94111.0,94110.0,0.3844492]
[1745674483509,0.3853,94111.0,94110.0,0.4177492]
[1745674486606,0.3853,94111.0,94110.0,0.3844492]
[1745674487909,0.3853,94111.0,94110.0,0.4166492]
[1745674489125,0.3522,94111.0,94110.0,0.4481492]
[1745674489313,0.3522,94111.0,94110.0,0.4796492]
[1745674490015,0.29,94111.0,94110.0,0.4796492]
[1745674490210,0.29,94111.0,94110.0,0.5859092]
[1745674492822,0.41,94130.0,94125.0,0.2124154]
[1745674493116,0.26,94126.0,94125.0,0.2655189]
[1745674493319,0.26,94126.0,94125.0,0.3717589]
[1745674494112,0.26,94126.0,94125.0,0.5397589]
[1745674494823,0.26,94126.0,94125.0,0.5716589]
[1745674495027,0.26,94126.0,94125.0,0.5726589]
[1745674496127,0.26,94126.0,94125.0,0.4664189]
[1745674499526,0.26,94126.0,94125.0,0.4345189]
[1745674500929,0.26,94126.0,94125.0,0.4668189]
[1745674505329,0.26,94126.0,94125.0,0.3814154]
[1745674505630,0.4724131,94126.0,94125.0,0.169]
[1745674505929,0.26,94126.0,94125.0,0.3814154]
[1745674513430,0.6208,94126.0,94125.0,0.3814154]
[1745674534745,0.26,94126.0,94125.0,0.3814154]
[1745674534941,0.6208,94126.0,94125.0,0.3814154]
[1745674535344,0.8332131,94126.0,94125.0,0.169]
[1745674535545,0.6208,94126.0,94108.0,0.0531133]
[1745674535845,0.3608,94116.0,94115.0,0.2124374]
[1745674536150,0.6208,94116.0,94115.0,0.2124374]
[1745674536744,0.6828,94116.0,94115.0,0.2124374]
[1745674537247,0.6828,94116.0,94115.0,0.3834374]
[1745674545256,0.322,94116.0,94115.0,0.3834374]
[1745674546149,0.322,94116.0,94115.0,0.4470374]
[1745674547149,0.322,94116.0,94115.0,0.4147374]
[1745674550063,0.322,94116.0,94110.0,0.2124478]
[1745674550064,0.2124411,94114.0,94110.0,0.2124478]
[1745674550252,0.0611,94113.0,94100.0,0.10106269]
[1745674550457,0.3311,94113.0,94112.0,0.2124447]
[1745674551161,0.3311,94113.0,94112.0,0.3804447]
[1745674551664,0.3321,94113.0,94112.0,0.3804447]
[1745674552262,0.3311,94113.0,94112.0,0.3824447]
[1745674553557,0.3311,94113.0,94112.0,0.4151447]
[1745674554169,0.3311,94113.0,94112.0,0.3824447]
[1745674556259,0.27,94113.0,94112.0,0.3824447]
[1745674556459,0.00803444,94130.0,94129.0,0.2124063]
[1745674556662,0.08,94130.0,94129.0,0.2124063]
[1745674557169,0.08,94130.0,94129.0,0.3804063]
[1745674557467,0.08,94130.0,94129.0,0.4866423]
[1745674557971,0.082,94130.0,94129.0,0.5188423]
[1745674558160,0.082,94130.0,94129.0,0.4767063]
[1745674560464,0.28042461,94149.0,94148.0,0.2123635]
[1745674560664,0.26042461,94149.0,94148.0,0.2123635]
[1745674560872,0.25,94149.0,94148.0,0.2123635]
[1745674561068,0.25,94149.0,94148.0,0.3803635]
[1745674561257,0.25,94149.0,94148.0,0.4451635]
[1745674561465,0.256,94149.0,94148.0,0.4461635]
[1745674561760,0.1500594,94149.0,94148.0,0.5523795]
[1745674562158,0.1567104,94168.0,94167.0,0.2123206]
[1745674562363,0.0013,94181.0,94180.0,0.2122913]
[1745674562557,0.0013,94181.0,94180.0,0.5730913]
[1745674562767,0.2413,94181.0,94180.0,0.5730913]
[1745674562965,0.2413,94181.0,94180.0,0.6355913]
[1745674563160,0.2413,94181.0,94180.0,0.8035913]
[1745674563968,0.303,94181.0,94180.0,0.8035913]
[1745674564759,0.304,94181.0,94180.0,0.8035913]
[1745674565168,0.2423,94181.0,94180.0,0.8035913]
[1745674565670,3.70851147,94200.0,94191.0,0.0530666]
[1745674565870,3.70851147,94200.0,94199.0,0.5730485]
[1745674565871,3.59851147,94200.0,94199.0,0.5730485]
[1745674566175,3.59851147,94200.0,94199.0,0.7410485]
[1745674566873,3.59851147,94200.0,94199.0,0.8026485]
[1745674567673,3.59951147,94200.0,94199.0,0.8026485]
[1745674568169,3.60151147,94200.0,94199.0,0.8026485]
[1745674568577,3.60151147,94200.0,94199.0,0.9088045]
[1745674569872,3.60151147,94200.0,94199.0,0.8026485]
[1745674570076,3.60151147,94200.0,94199.0,0.7715485]
[1745674570277,3.60151147,94200.0,94199.0,0.7410485]
[1745674570475,3.59851147,94200.0,94199.0,0.7410485]
[1745674570679,3.59951147,94200.0,94199.0,0.7410485]
[1745674575678,3.59951147,94200.0,94199.0,0.5288]
[1745674575871,3.59951147,94200.0,94199.0,0.168]
[1745674576069,3.59951147,94200.0,94199.0,0.1181]
[1745674576269,3.59951147,94200.0,94199.0,0.3303485]
[1745674577578,3.59951147,94200.0,94199.0,0.1181]
[1745674577777,3.59951147,94200.0,94199.0,0.3303485]
[1745674578378,3.59951147,94200.0,94199.0,0.1181]
[1745674578570,3.59951147,94200.0,94199.0,0.3303485]
[1745674578975,3.59951147,94200.0,94199.0,0.1181]
[1745674579375,3.59951147,94200.0,94199.0,0.3303485]
[1745674585475,3.59951147,94200.0,94199.0,0.6911485]
[1745674588185,3.59951147,94200.0,94199.0,0.7973045]
[1745674588380,3.59951147,94200.0,94199.0,0.8304045]
[1745674589483,3.59951147,94200.0,94199.0,0.7242485]
[1745674591192,3.59951147,94200.0,94199.0,0.6911485]
[1745674593590,3.59951147,94200.0,94199.0,0.7228485]
[1745674595592,3.59951147,94200.0,94199.0,0.8290045]
[1745674606489,3.59951147,94200.0,94199.0,1.1898045]
[1745674617304,3.59951147,94200.0,94199.0,1.1581045]
[1745674617806,3.59951147,94200.0,94199.0,1.0519485]
[1745674621104,3.59951147,94200.0,94199.0,0.9338485]
[1745674622905,3.81175767,94200.0,94199.0,0.7216]
[1745674623210,4.01751147,94200.0,94199.0,0.7216]
[1745674623697,4.54830147,94200.0,94199.0,0.7216]
[1745674624098,4.54830147,94200.0,94188.0,0.3608]
[1745674624301,0.0637,94199.0,94198.0,0.2122507]
[1745674624494,0.3137,94199.0,94198.0,0.2122507]
[1745674629010,0.310075,94199.0,94198.0,0.2122507]
[1745674631114,0.310075,94199.0,94198.0,0.3802507]
[1745674632210,0.310075,94199.0,94198.0,0.5730507]
[1745674632510,0.311075,94199.0,94198.0,0.5730507]
[1745674632911,0.311075,94199.0,94198.0,0.3608]
[1745674633615,0.311075,94199.0,94196.0,0.2122537]
[1745674634000,0.311075,94199.0,94194.0,0.0530648]
[1745674634001,0.311075,94199.0,94186.0,0.3608]
[1745674634206,0.15669235,94196.0,94186.0,0.3608]
[1745674634407,0.0605,94195.0,94194.0,0.2122588]
[1745674634614,0.3405,94195.0,94194.0,0.2122588]
[1745674635207,0.3405,94195.0,94194.0,0.3802588]
[1745674635717,0.3435,94195.0,94194.0,0.3802588]
[1745674643618,0.3133,94195.0,94194.0,0.3802588]
[1745674670842,0.3133,94195.0,94194.0,0.7410588]
[1745674676140,0.3133,94195.0,94194.0,0.3802588]
[1745674706850,0.283,94195.0,94194.0,0.4116588]
[1745674707444,2.41570163,94200.0,94199.0,0.2122485]
[1745674707647,2.51570163,94200.0,94199.0,0.5730485]
[1745674707853,2.51570163,94200.0,94199.0,0.8230485]
[1745674708046,2.51570163,94200.0,94199.0,1.6279945]
[1745674708246,2.51570163,94200.0,94199.0,1.6902945]
[1745674709046,2.51570163,94200.0,94199.0,1.1595045]
[1745674709247,2.51570163,94200.0,94199.0,1.6902945]
[1745674711252,2.44207743,94200.0,94199.0,1.6902945]
[1745674711450,1.93578973,94200.0,94199.0,1.6902945]
[1745674711650,1.51986483,94200.0,94199.0,1.6902945]
[1745674711851,1.35950943,94200.0,94199.0,1.6902945]
[1745674712050,1.30133613,94200.0,94199.0,1.6902945]
[1745674712951,1.30133613,94200.0,94199.0,0.9095045]
[1745674713557,1.30133613,94200.0,94199.0,1.6902945]
[1745674713753,1.23447363,94200.0,94199.0,1.6902945]
[1745674713955,0.01067914,94214.0,94210.0,0.2122237]
[1745674714143,0.2413,94211.0,94210.0,0.5730237]
[1745674714352,0.2413,94211.0,94210.0,0.67916769]
[1745674714957,0.2413,94211.0,94210.0,0.74186769]
[1745674715251,0.2413,94211.0,94210.0,0.90986769]
[1745674716049,0.2433,94211.0,94210.0,0.90986769]
[1745674724674,0.2433,94211.0,94210.0,0.8037237]